Workbook

Sheet Cover Page
D1: Add company logo
K2: Template version 25.1a (for incinerators) - 27/11/25
K4: Note that there is another version of this template available for co-incinerators
K13: Notes:
K14: This template may require adjustments by individual operators to meet specific reporting requirements as defined in the site Permit(s)
B29: Annual Performance Report 2025
B31: Permit EPR/CP3535CK
B33: Javelin Park Energy Recovery Facility
B35: other name of facility (if applicable)
B37: FCC O&M Services Ltd
B39: Year: | C39: 2025
B41: Address: | C41: Javelin Park, Haresfield, Gloucestershire, GL2 7NQ
B43: Tel: | C43: 01452 379886
B45: Email: | C45: info_gefw@fccenvironment.co.uk
B47: Prepared by: | C47: J. Towl | F47: Position: | G47: Environment Manager
B49: Approved by: | C49: R. Hayward | F49: Position: | G49: General Manager
B51: Version: | C51: 1
B53: Issue Date: | C53: 2026-01-30

Sheet Facility Info
A1: =+'Cover Page'!$B$29 -> Annual Performance Report 2025 | E1: =+'Cover Page'!$B$33 -> Javelin Park Energy Recovery Facility
A3: Plant Description and Design | K3: Notes:
A5: The installation is designed to recover energy from residual municipal waste, and from commercial and industrial waste of a similar nature to residual municipal waste, by incineration. Energy will be recovered from the installation in the form of electricity, which will be exported to the National Grid. The installation is located on a 4.8 hectare site at grid reference 380040,210430, a short distance south of Junction 12 of the M5 motorway in Gloucestershire. The village of Haresfield is located approximately 1.0 km to the east of the site and the Quedgeley Business Park is located approximately 1.5 km to the north of the site on either side of the motorway. The installation will process up to 190,000 tonnes of waste per year (23.75 tonnes per hour) in a single incineration line. The incinerator is of a mass burn moving grate design. Waste will be delivered to the facility by road in covered vehicles or containers and tipped within the main building in the waste reception hall directly into the waste bunker. The waste is stored and mixed in the waste bunker prior to being burnt in the moving grate incinerator plant. | K5: Include summary of plant design, design capacity, no. of combustion lines, electrical and heat capacity and any other general information that describes the facility, its location and purpose
A20: Summary of Operational Processes and Procedures
A22: Heat from the combustion process is used to generate high pressure steam in a multi stage boiler plant which is integral to the combustion process. The high pressure steam is fed to a steam turbine to generate electricity. The ERF has a total capacity of approximately 65.3 MW (thermal input) and is capable of generating up to 17.4 MWe of electrical power, of which up to 14.5 MW will be exported to the National Grid. Provision has been made in the design for the plant to be capable of supplying heat in the form of steam or hot water, once a viable heat user becomes available to take the heat as an output. The furnace design ensures that a temperature of at least 850°C for a period of at least two seconds is achieved in the combustion chamber. To ensure that the temperature does not fall below 850°C, auxiliary burners firing low sulphur fuel oil are automatically triggered by online process monitoring equipment. The auxiliary burners are also used to achieve and maintain the minimum furnace temperature during start up and shutdown periods. Combustion gases are cleaned before they are released to atmosphere. There are four components to the flue gas cleaning and abatement technique: • Selective Non-Catalytic Reduction (SNCR), involving the injection of ammonia into the combustion chamber, provides for the abatement of nitrogen oxides; • hydrated lime reagent, injected to neutralise acid gas compounds; • activated carbon, injected to absorb mercury, dioxins and furans; and • bag filtration to remove fine particulates. The residues which are collected on the bag filters are directed to a residues silo. Part of the residues are recycled to the reagent injection points to ensure maximum usage of the lime content. Cleaned flue gases exiting the abatement system of the incinerator line are discharged through a 70 m tall stack. Exhaust flue gases are continuously monitored for particulate matter, oxides of nitrogen, sulphur dioxide, carbon monoxide, total organic carbon, hydrogen chloride and ammonia Monitoring for heavy metals, dioxins, nitrous oxide and hydrogen fluoride is carried out periodically. Under normal circumstances there are no liquid effluent emissions from the installation. Although some rainwater is harvested for use in the process, the site has a net consumption of water. Waste water arisings from boiler blowdown and water treatment backwash are recycled to the Incinerator Bottom Ash (IBA) quench system. Sludge from the IBA waste water pit will be periodically tankered off-site for appropriate treatment. | K22: Include summary of key processes and procedures such as (but not limited to); waste reception, control rooms, grate, bed and boiler, energy & heat generation, cooling systems, residue management, emission controls, health and safety systems, maintenance

Sheet Operational Data
A1: =+'Cover Page'!$B$29 -> Annual Performance Report 2025 | E1: =+'Cover Page'!$B$33 -> Javelin Park Energy Recovery Facility
A3: Operational Data
A4: Plant Size: | B4: 190000 | D4: tonnes pa | J4: Notes:
A5: Nominal net thermal input: | B5: 65.3 | C5: MWth | J5: * Export capacity = nominal generation capacity at the generator terminals minus nominal parasitic load. ** CHP and district heating plants only - put N/A if no heat export. *** Combusted tonnage = tonnes delivered in period + (tonnes in bunker at start of period – tonnes in bunker at end of period), or equivalent calculation depending on plant type **** Availability Definition: The availability of a line is to be calculated by the number of hours the line reported Continuously Monitored emission levels to the Regulator through the calendar year divided by the total number of hours in that year. The overall plant availability is calculated as the mean of all lines in the plant. For clarity this includes periods of abnormal operation. Rationale: The primary function of an Energy from Waste facility is the disposal of waste. It follows therefore that the availability of a plant is determined by the period of time a facility spends undertaking this activity. *****NCV of waste: This should be completed for all plants which have a boiler. Calculate using total thermal power produced by boiler/boiler efficiency, or other suitable calculation.
A6: Nominal electrical export capacity*: | B6: 14.5 | C6: MWe
A7: Nominal heat export capacity**: | C7: MWth
A8: No. of combustion lines: | B8: 1 | C8: No. of steam turbines: | E8: 1
A10: Waste types received | B10: Unit | C10: Q1 | D10: Q2 | E10: Q3 | F10: Q4 | G10: Year Total | H10: %
A11: Household / Local Authority | B11: tonnes | C11: 33359.81 | D11: 33133.22 | E11: 32932.9 | F11: 33423.4 | G11: =SUM(C11:F11) -> 132849.33 | H11: =IF(G11>0,G11/$G$21,"-") -> 0.7065687397
A12: Commercial & Industrial | C12: 19593.94 | D12: 10115.29 | E12: 7535.68 | F12: 17926.15 | G12: =SUM(C12:F12) -> 55171.06 | H12: 0.2934312603
A13: Hazardous | G13: 0 | H13: -
A14: Clinical | G14: 0 | H14: -
A15: Waste wood (biomass) | G15: 0 | H15: -
A16: Refuse Derived Fuel (incl. SRF) - H'hold/LA | G16: =SUM(C16:F16) -> 0 | H16: -
A17: Refuse Derived Fuel (incl. SRF) - C&I | G17: 0 | H17: -
A18: Other [Please specify] | G18: 0 | H18: -
A19: Other [Please specify] | G19: 0 | H19: -
A20: Other [Please specify] | G20: 0 | H20: -
A21: Total waste received | C21: =SUM(C11:C20) -> 52953.75 | D21: =SUM(D11:D20) -> 43248.51 | E21: =SUM(E11:E20) -> 40468.58 | F21: =SUM(F11:F20) -> 51349.55 | G21: 188020.39
A22: Rejected Waste | G22: =SUM(C22:F22) -> 0 | H22: =IF(G22>0,G22/$G$21,"-") -> -
A23: Unprocessed waste transferred out | G23: =SUM(C23:F23) -> 0 | H23: =IF(G23>0,G23/$G$21,"-") -> -
A24: Total waste combusted *** | C24: 51204.34 | D24: 45164.6 | E24: 37542.83 | F24: 52904.82 | G24: =SUM(C24:F24) -> 186816.59
A26: Energy Usage / Export | B26: Unit | C26: Q1 | D26: Q2 | E26: Q3 | F26: Q4 | G26: Year Total | H26: KWh/te | J26: Password for protected cells A password has been set to prevent accidental editing of cells with formulae. If you still need to make an edit for some reason then the password = 1234
A27: Power generated at generator terminals | B27: MWh | C27: 38117 | D27: 35030 | E27: 24776 | F27: 40169 | G27: =SUM(C27:F27) -> 138092 | H27: =IF(G27>0,G27*1000/$G$24,"-") -> 739.1848872
A28: Power exported to grid and other external user(s) | C28: 34198 | D28: 31463 | E28: 21778 | F28: 36224 | G28: =SUM(C28:F28) -> 123663 | H28: =IF(G28>0,G28*1000/$G$24,"-") -> 661.9487059
A29: Power imported | C29: 1.19 | D29: 1.77 | E29: 6.85 | F29: 0.14 | G29: 9.95 | H29: =IF(G29>0,G29*1000/$G$24,"-") -> 0.05326079445
A30: Indicative parasitic load | B30: % | C30: =IF(C27>0,(C27-C28)/C27,"-") -> 0.1028150169 | D30: =IF(D27>0,(D27-D28)/D27,"-") -> 0.1018270054 | E30: 0.1210041976 | F30: 0.09821006249 | G30: =IF(G27>0,1-G28/(G27+G29),"-") -> 0.1045528322
A31: Thermal Energy Exported ** | G31: =SUM(C31:F31) -> 0 | H31: =IF(G31>0,G31*1000/$G$24,"-") -> -
A32: R1 value (if applicable) | B32: R1 | C32: - | D32: - | E32: - | F32: - | G32: 0.72
A34: Waste Disposal & Recovery | B34: Unit | C34: Q1 | D34: Q2 | E34: Q3 | F34: Q4 | G34: Year Total | H34: % inputs
A35: APC Residues - produced | B35: tonnes | C35: 1355.14 | D35: 1141.27 | E35: 929.57 | F35: 1267.74 | G35: =SUM(C35:F35) -> 4693.72 | H35: =IF(G35>0,G35/$G$24,"-") -> 0.02512474936
A36: IBA - produced | C36: 9474.92 | D36: 7674.44 | E36: 8974.56 | F36: 10593.76 | G36: 36717.68 | H36: =IF(G36>0,G36/$G$24,"-") -> 0.1965440007
A37: Metals recycling | G37: =SUM(C37:F37) -> 0 | H37: -
A38: Ferrous | C38: 716.7 | D38: 402.76 | E38: 244.04 | F38: 341.96 | G38: =SUM(C38:F38) -> 1705.46 | H38: 0.009129060754
A39: Non-Ferrous | C39: 64.8 | D39: 91.36 | E39: 36.22 | F39: 0 | G39: 192.38 | H39: 0.001029780064
A40: IBAA | C40: 1544.28 | D40: 2704.5 | E40: 920.42 | F40: 0 | G40: 5169.2 | H40: 0.02766991946
A42: Raw Material Usage | B42: Unit | C42: Q1 | D42: Q2 | E42: Q3 | F42: Q4 | G42: Year Total | H42: Qty./te
A43: Mains Water | B43: ltrs | C43: 4389 | D43: 5583 | E43: 6131 | F43: 4966 | G43: =SUM(C43:F43) -> 21069 | H43: =IF(G43>0,G43/$G$24,"-") -> 0.1127790631
A44: Other Water | B44: ltrs | G44: 0 | H44: =IF(G44>0,G44/$G$24,"-") -> -
A45: Ammonia | B45: kgs | C45: 83619 | D45: 78730 | E45: 65908 | F45: 89020 | G45: 317277 | H45: 1.698334179
A46: Urea | B46: kgs | G46: =SUM(C46:F46) -> 0 | H46: -
A47: Activated Carbon | B47: kgs | C47: 14174 | D47: 13080 | E47: 11430 | F47: 13790 | G47: 52474 | H47: 0.2808851184
A48: Lime / hydrated lime | B48: kgs | C48: 746230 | D48: 659400 | E48: 532700 | F48: 646090 | G48: 2584420 | H48: 13.83399622
A49: Fuel oil | B49: ltrs | C49: 228 | D49: 67677 | E49: 74947 | F49: 3496 | G49: 146348 | H49: 0.7833779645
A50: Gas | B50: m3 | G50: 0 | H50: -
A51: Other | G51: 0 | H51: -
A53: Summary | B53: Line/Unit | C53: Q1 | D53: Q2 | E53: Q3 | F53: Q4 | G53: Year Total | I53: Hrs in year
A54: Availability of waste combustion by line, hrs **** | B54: 1 | C54: 2159 | D54: 1974 | E54: 1721 | F54: 2208 | G54: =SUM(C54:F54) -> 8062 | H54: =+G54/$I$54 -> 0.9203196347 | I54: 8760 | J54: Change this figure to 8784 in a leap year
B55: 2 | G55: 0 | H55: =+G55/$I$54 -> 0
B56: 3 | G56: 0 | H56: 0
B57: 4 | G57: 0 | H57: 0
B58: 5 | G58: =SUM(C58:F58) -> 0 | H58: 0
A59: Hours of turbine operations, hrs | B59: 1 | C59: 2068.3 | D59: 1943.5 | E59: 1434.65 | F59: 2200.5 | G59: 7646.95 | H59: 0.8729394977
A60: Hours of turbine operations, hrs | B60: 2 | G60: 0 | H60: 0
A61: Hours of heat / steam export** | B61: hours | G61: 0 | H61: =IF(B61>0,G60/I54,"n/a") -> 0
A62: Net calorific value of waste***** | B62: MJ/kg | C62: 9.91 | D62: 9.96 | E62: 10.38 | F62: 9.81
A63: Abnormal operation events | B63: qty. | C63: 0 | D63: 0 | E63: 0 | F63: 0 | G63: 0 | H63: =IF(G63>0,"yes","no") -> no
A64: Abnormal operation duration | B64: hours | C64: 0 | D64: 0 | E64: 0 | F64: 0 | G64: 0 | H64: =+(G64)/I54 -> 0
A65: Permit Breaches | B65: qty. | D65: 4 | G65: 4 | H65: =IF(G65>0,"yes","no") -> yes

Sheet Operational Summary
A1: =+'Cover Page'!$B$29 -> Annual Performance Report 2025 | E1: =+'Cover Page'!$B$33 -> Javelin Park Energy Recovery Facility
A3: Summary of Plant Operations and Maintenance during the reporting year | K3: Notes:
A5: The facility was in waste operation for 8,062 hours meaning an availability of 92%. Total waste combusted totalled 186,817 tonnes, with electricity generation of 138,092MWh and an export of 123,663MWh . Minor outage at the end of April into early May consisted of planned repair and maintenance of the boiler and auxillary systems. The major outage took place in September. | K5: Include summary of key operational and/or maintenance activity undertaken in the year, such as any major component upgrades and/or replacements
A29: =+'Cover Page'!C39 -> 2025 | B29: Plant shut-downs
A30: Start date | B30: End date | C30: Reason for shut-down | K30: Provide a very brief reason for plant shut-down e.g. "Shut-down prior to major outage"; "Emergency shut-down due to boiler tube leak". All emergency shut-downs must be listed (irrespective of whether or not they were required to be reported to the EA). There is no need to include periods of hot-standby here (e.g. to clear feed chute hopper blockages). For clinical waste incinerators which require regular shut-downs for boiler cleaning, there is no need to record these here (only those prior to major outages, and emergency shut-downs).
A31: 2025-04-26 | B31: 2025-05-05 | C31: Planned minor outage
A32: 2025-08-01 | B32: 2025-08-03 | C32: Emergency shutdown due to loss of boiler CPU
A33: 2025-09-07 | B33: 2025-09-25 | C33: Planned major outage
A34: 2025-12-12 | B34: 2025-12-12 | C34: Emergency shutdown due to plant trip

Sheet Perf. Form 1
A1: =+'Cover Page'!C39 -> 2025 | B1: Annual Reporting Performance Form 1
A3: =+'Cover Page'!B31 -> Permit EPR/CP3535CK | F3: Operator: | G3: =+'Cover Page'!B37 -> FCC O&M Services Ltd
A4: Facility: | B4: =+'Cover Page'!B33:I33 -> Javelin Park Energy Recovery Facility | F4: Form: | G4: Performance 1
A6: Reporting Period from: | D6: 2025-01-01 | F6: to: | G6: 2025-12-31
A8: =+A1 -> 2025 | B8: Annual Reporting of Waste Disposal and Recovery
A9: Waste Description | C9: Disposal Route(s) | E9: Disposal Tonnes | G9: Recovery Tonnes | I9: % / tonne of waste incinerated
A10: 1) Hazardous Wastes
A11: APC Residues | C11: D13 | E11: 4626.4 | I11: =IF((E11+G11)>0,(E11+G11)/'Operational Data'!$G$24, "-") -> 0.02476439592
A12: IBA | I12: =IF((E12+G12)>0,(E12+G12)/'Operational Data'!$G$24, "-") -> -
I13: =IF((E13+G13)>0,(E13+G13)/'Operational Data'!$G$24, "-") -> -
I14: =IF((E14+G14)>0,(E14+G14)/'Operational Data'!$G$24, "-") -> -
A15: Total Hazardous Waste | E15: =SUM(E11:F14) -> 4626.4 | G15: =SUM(G11:H14) -> 0 | I15: =IF((E15+G15)>0,(E15+G15)/'Operational Data'!$G$24, "-") -> 0.02476439592
A17: 2) Non-Hazardous Wastes
A18: IBA | C18: R05 | G18: 36717.7 | I18: =IF((E18+G18)>0,(E18+G18)/'Operational Data'!$G$24, "-") -> 0.1965441078
A19: Ferrous Metal | C19: R04 | G19: 1705.5 | I19: =IF((E19+G19)>0,(E19+G19)/'Operational Data'!$G$24, "-") -> 0.009129274868
A20: Process Water | C20: D08 | E20: 3346.4 | I20: =IF((E20+G20)>0,(E20+G20)/'Operational Data'!$G$24, "-") -> 0.01791275604
A21: Non-Ferrous | C21: R04 | G21: 192.38 | I21: =IF((E21+G21)>0,(E21+G21)/'Operational Data'!$G$24, "-") -> 0.001029780064
A22: IBAA | C22: R05 | G22: 5169.2 | I22: =IF((E22+G22)>0,(E22+G22)/'Operational Data'!$G$24, "-") -> 0.02766991946
A23: Total Non-Hazardous Waste | E23: =SUM(E18:F22) -> 3346.4 | G23: =SUM(G18:H22) -> 43784.78 | I23: =IF((E23+G23)>0,(E23+G23)/'Operational Data'!$G$24, "-") -> 0.2522858382
A24: TOTAL WASTE | E24: =+E23+E15 -> 7972.8 | G24: =+G23+G15 -> 43784.78 | I24: =IF((E24+G24)>0,(E24+G24)/'Operational Data'!$G$24, "-") -> 0.2770502341
A26: Operator’s comments :
A31: =+A1 -> 2025 | B31: Annual Reporting of Water and Other Raw Material Usage
A32: Raw Material | E32: Usage | G32: Unit | H32: Specific Usage | J32: Unit
A33: Mains Water | E33: =+'Operational Data'!G43/1000 -> 21.069 | G33: m3 | H33: =IF(E33>0,E33/'Operational Data'!$G$24,"-") -> 0.0001127790631 | J33: m3/te
A34: Total Water | E34: =+'Operational Data'!G44+'Operational Data'!G43/1000 -> 21.069 | G34: m3 | H34: =IF(E34>0,E34/'Operational Data'!$G$24,"-") -> 0.0001127790631 | J34: m3/te
A35: Urea / Ammonia | E35: =+'Operational Data'!G45 -> 317277 | G35: kg | H35: =IF(E35>0,E35/'Operational Data'!$G$24,"-") -> 1.698334179 | J35: kg/te
A36: Activated Carbon | E36: =+'Operational Data'!G47 -> 52474 | G36: kg | H36: =IF(E36>0,E36/'Operational Data'!$G$24,"-") -> 0.2808851184 | J36: kg/te
A37: Lime / hydrated lime / Sodium Bicarb. | E37: =+'Operational Data'!G48 -> 2584420 | G37: kg | H37: =IF(E37>0,E37/'Operational Data'!$G$24,"-") -> 13.83399622 | J37: kg/te
A39: Operator’s comments :
A43: =+A31 -> 2025 | B43: Annual Reporting of other performance indicators
A44: Parameter | C44: Results by Line
C45: A1 | D45: A2 | E45: A3 | F45: A4 | G45: A5 | I45: Turbine 1 | J45: Turbine 2
A46: Operating hours for the year, hours | C46: 8062
A47: Number of periods of abnormal operation, qty. | C47: 0
A48: Cumulative hours of abnormal operation for this year, hours | C48: 0
A50: Operator’s comments :
A54: Signed: | G54: Date:

Sheet Energy Form 1
A1: =+'Cover Page'!C39 -> 2025 | B1: Annual Reporting of Energy Usage/Export
A3: =+'Cover Page'!B31 -> Permit EPR/CP3535CK | F3: Operator: | G3: =+'Cover Page'!B37 -> FCC O&M Services Ltd
A5: Facility: | B5: =+'Cover Page'!B33:I33 -> Javelin Park Energy Recovery Facility | F5: Form: | G5: Energy 1
A7: Reporting Period from: | D7: =+'Perf. Form 1'!D6:E6 -> 2025-01-01 | F7: to: | G7: =+'Perf. Form 1'!G6:H6 -> 2025-12-31
A9: Energy Source | D9: Energy Usage | F9: Unit | G9: Specific Usage (KWh/tonne incinerated
A10: Electricity Produced | D10: =+'Operational Data'!G27 -> 138092 | F10: MWh | G10: =+'Operational Data'!H27 -> 739.1848872
A11: Electricity Imported | D11: =+'Operational Data'!G29 -> 9.95 | F11: MWh | G11: =+'Operational Data'!H29 -> 0.05326079445
A12: Electricity Exported | D12: =+'Operational Data'!G28 -> 123663 | F12: MWh | G12: =+'Operational Data'!H28 -> 661.9487059
A13: Gas Oil | D13: 120 | F13: tonnes
A14: Steam/hot water exported | D14: =+'Operational Data'!G31 -> 0 | F14: GWh | G14: =+'Operational Data'!H31 -> -
A18: Operator’s comments :
A29: Signed: | G29: Date:

Sheet Permit Compliance
A1: =+'Cover Page'!$B$29 -> Annual Performance Report 2025 | E1: =+'Cover Page'!$B$33 -> Javelin Park Energy Recovery Facility
A3: Summary of Permit Compliance
A5: Compliance with permit limits for continuously monitored pollutants
A7: The plant met its emission limits as shown in the table below:
A8: Substance | C8: Percentage time compliant during operationNote 1 | L8: Notes:
C9: Half-hourly limit | F9: Daily limit | L9: Note 1: Please report to 2 decimal places, i.e. xx.xx% Note 2: Please enter into this table any permit non-compliances that the EA has given a CCS score for. Please also enter any other non-compliances which you have notified to the EA (e.g. ELV exceedances) but which have not yet been assessed by the EA. There is no need to enter any notifications which were subsequently assessed by the EA not to be permit breaches. Note 3: Please enter information here (rather than just referencing the notifications that were sent to the EA) including where relevant the incineration line reference, pollutant and value of the measured result for any ELV exceedances.
A10: Particulates | C10: 1 | F10: 1
A11: Oxides of nitrogen | C11: 1 | F11: 1
A12: Sulphur dioxide | C12: 0.9998 | F12: 0.997
A13: Carbon monoxide | C13: 100% of 95% of 10-min averages | F13: 1
A14: Total organic carbon | C14: 1 | F14: 1
A15: Hydrogen chloride | C15: 1 | F15: 1
A17: Ammonia | F17: 1
A19: Summary of non-compliances under the permit Note 2
A20: Date | B20: Summary of non-compliance Note 3 | D20: Reason | G20: Measures taken to prevent reoccurrence | H20: CCS score if applicable*
H21: Impact | I21: Root cause
A22: 2025-05-12 | B22: SO2 half-hour reading 223.91mg/m3 | D22: received multiple loads of unacceptable waste | G22: - Extra Lime Dosing Added - Reagent Injection System Checked To Ensure Correct Function - Residue Recirc System Set To Active And Humidification Water Started - Bunker Stock Thoroughly Mixed | H22: CCS4
A23: 2025-05-13 | B23: SO2 half-hour readings of 208.79mg/m3 & 230.42mg/m3, daily 40.22mg/m3 | D23: received multiple loads of unacceptable waste | G23: - Extra Lime Dosing Added - Reagent Injection System Checked To Ensure Correct Function - Residue Recirc System Set To Active And Humidification Water Started - Bunker Stock Thoroughly Mixed
A24: 2025-06-18 | B24: Dioxin result 0.091ng/m3 | D24: No clear cause identified after investigation | G24: Retest. Review of carbon dosing, boiler temperatures, waste delivered | H24: CCS4
A27: *If the Environment Agency (EA) has given a Compliance Classification Scheme (CCS) score due to a permit non-compliance it should be entered here (CCS4 = No impact; CCS3 = Minor impact; CCS2 = Significant impact; CCS1 = Major impact). If the EA has not yet assessed a non-compliance which you have notified to them, these columns should be left blank. Enter N/A if no score was given for the root cause.
A29: Summary of any complaints received and actions to taken to resolve them.
A30: Date | B30: Summary of complaint [including Line/Reference] | E30: Reason (including whether substantiated by the operator or the EA) | H30: Measures taken to prevent reoccurrence
A31: 2025-05-24 | B31: Odour complaint from local resident directly to facility. | E31: Substantiated by operator. Fault with Tipping Hall egress door unable to close. | H31: Fault rectified and door back in service
A32: 2025-07-03 | B32: Odour complaint from local resident directly to facility. | E32: Substantiated by operator. Fault with Tipping Hall access door at the time | H32: Fault rectified and door back in service

Sheet Improvements
A1: =+'Cover Page'!$B$29 -> Annual Performance Report 2025 | E1: =+'Cover Page'!$B$33 -> Javelin Park Energy Recovery Facility
A3: Summary of Plant Improvements
A5: Summary of any efficiency improvements that have been completed within the year.
A16: Summary of any permit improvement conditions that have been completed within the year and the resulting environmental benefits.
A17: Improvement conditions 1, 2 & 3 have been completed. Improvement condition 1 investigated the potential to reduce NOx levels whilst also considering associated levels of ammonia, along with the impact this has on plant operation, reliability and maintenance. Improvement Condition 2 & 3 confirmed the facility does not need to install continuous mercury or dioxin monitors due to proven low and stable measurements.
A27: Summary of any changes to the plant or operating techniques which required a variation to the permit and a summary of the resulting environmental impact.
A28: N/A
A38: Summary of any other improvements made to the plant or planned to be made and a summary of the resulting environmental benefits.

Sheet Public Liasion
A1: =+'Cover Page'!$B$29 -> Annual Performance Report 2025 | E1: =+'Cover Page'!$B$33 -> Javelin Park Energy Recovery Facility
A3: Details of Public & Stakeholder Liaison
A5: Summary of events held during the reporting year.
A6: Date | C6: Description
A9: 2025-02-17 | C9: Seed bomb workshop
A11: 2025-03-22 | C11: Open Day
A13: 2025-04-17 | C13: Water bottle rocket workshop
A15: 2025-05-15 | C15: Copper wire tree workshop
A17: 2025-06-19 | C17: CLG Meeting
A19: 2025-08-20 | C19: Scavenger Hunt
A21: 2025-09-30 | C21: CLG Meeting
A23: 2025-10-18 | C23: Open Day
A25: 2025-10-27 | C25: Paper making workshop
A29: List of events planned for next year
A30: Date | C30: Description
A31: 2026-01-08 | C31: CLG Meeting
A33: 2026-02-16 | C33: Seed bomb workshop
A35: 2026-03-14 | C35: Open Day
A37: 2026-03-30 | C37: Water bottle rocket workshop
A39: 2026-06-08 | C39: Copper wire tree workshop
A41: 2026-08-17 | C41: Scavenger hunt
A43: 2026-10-17 | C43: Open day
A45: 2026-10-27 | C45: Paper making workshop
A47: TBC in December | C47: Positive message jar / Christmas decoration workshop
A50: If you wish to be involved in the public liaison programme, please contact: info_gefw@fccenvironment.co.uk

Sheet CO2 N2O
A1: =+'Cover Page'!$B$29 -> Annual Performance Report 2025 | C1: =+'Cover Page'!$B$33 -> Javelin Park Energy Recovery Facility
A3: Carbon dioxide emissions and biogenic content of waste inputs | F3: Notes:
A5: Carbon dioxide emissions (all types of plant)
B6: Annual mass of carbon dioxide released | C6: tonnes | D6: 193588
B7: Annual mass of carbon dioxide released per tonne of waste burned | C7: t CO2 / t waste | D7: 1.04 | F7: Note 1: All permits require operators to continuously monitor CO2 to EN14181 and flow to BS EN 16911-2 (unless otherwise agreed in writing). Operators must therefore use the results from these instruments to calculate their annual CO2 emissions. Where an operator does not have a flow meter calibrated to BS EN 16911-2, the averaged flow measurement from that year's periodic monitoring can be used instead. If the plant does not have calibrated CO2 CEMS, a suitably justified emissions factor can be used.
B8: Annual mass of carbon dioxide released per MWh of energy exported | C8: t CO2 / MWh export | D8: 1.57
B9: Description of how annual carbon dioxide mass emission has been calculated. See Note 1 | C9: Use of mass emission reporting tool on DAHS using CEMS data
A10: Nitrous oxide emissions (only plants which use ammonia or urea to abate NOx emissions)
B11: Annual mass emissions of nitrous oxide | C11: tonnes N2O | D11: 0
B12: Description of how annual nitrous oxide mass emission has been calculated See Note 2 | C12: Annual average from CEMS, multiplie by annual average flow. CEMS readings for N2O read =<0 as an average for the year | F12: Note 2: All permits require operators to continuously monitor N2O to EN14181 and flow to BS EN 16911-2, unless otherwise agreed in writing. Operators must therefore use the results from these instruments to calculate their annual N2O emissions. Where an operator does not have a flow meter calibrated to BS EN 16911-2, the averaged flow measurement from periodic monitoring can be used instead. If the plant does not have calibrated N2O CEMS, data from periodic monitoring or a suitably justified emissions factor can be used instead.
A13: Total annual carbon dioxide + nitrous oxide emissions. See Note 3. | C13: tonnes CO2e | D13: 193588 | F13: Note 3: Total annual carbon dioxide and nitrous oxide emissions reported as carbon dioxide equivalent where 1 tonne nitrous oxide is equivalent to 265 tonnes carbon dioxide.
A14: Biogenic CO2 emissions (See Note 4) | F14: Note 4: Only plants combusting residual municipal waste, refuse derived fuel or solid recovered fuel need complete this section.
B15: Percentage of total carbon dioxide emissions arising from biogenic waste | C15: % | D15: 0.4554
B16: No. of measurements undertaken | C16: Number | D16: 1
B17: Description of how percentage biogenic carbon dioxide emissions have been measured or calculated. See Note 5 | C17: Waste composition analysis June 2025. | F17: Note 5: The results from C14 sampling should be used if this is carried out at the plant (either via an installed sampler or from spot samples). Otherwise, as an approximation (and in lieu of any more accurate metrics which may be developed in future), the measured or estimated biogenic fraction by net calorific value (see Note 6) can be assumed to be the same as the biogenic CO2 fraction of the total CO2 emissions from the plant.
A18: Biogenic fraction of waste feedstock (See Note 4)
B19: Yearly average biogenic percentage of the waste by net calorific value (NCV) | C19: % | D19: 0.455
B20: Description of how biogenic percentage (by NCV) has been calculated or estimated. See Note 6 | C20: Waste composition analysis June 2025. | F20: Note 6: If C14 sampling is carried out at the plant, the methodology set out in the embedded document entitled "Renewable Energy Association Energy Content of Fuels - Description of Method" embedded below can be used to calculate the biogenic percentage by net calorific value. Otherwise, data from waste sampling or BIOMA software can be used; or if none of these are available, an estimated figure with justification or a figure assumed on the basis of up-to-date industry data can be used.
B21: Yearly average biogenic percentage of the waste by mass | C21: % | D21: 0.455
B22: If waste sampling undertaken, no. of samples used to ascertain average biogenic percentages above | C22: Number | D22: 1
B23: Description of how biogenic percentage (by mass) has been calculated or estimated. See Note 7 | C23: Waste composition analysis June 2025. | F23: Note 7: Where available, data from waste sampling should be used; otherwise, an estimated figure with justification can be used, or a figure assumed on the basis of up-to-date industry data.
B25: Comments:

Sheet Residues
A1: =+'Cover Page'!$B$29 -> Annual Performance Report 2025 | E1: =+'Cover Page'!$B$33 -> Javelin Park Energy Recovery Facility
A3: Summary of Residue Handling for the reporting year
A5: IBA residue taken to Nottingham APC residue taken to East Northamptonshire Metals taken to Sheffield | K5: Include in here a summary of residue handling regimes and destinations
A28: Residue Quality Monitoring Requirements
A30: Summary of monitoring undertaken and compliance
A31: Monitoring of residues as required in environmental permit was undertaken with no non-compliances recorded.
A33: 24 samples taken and analysed as per the ESA protocol classified as non-hazardous.
A38: Commentary on any specific events
A39: Date & Event | C39: Description
A52: Residue Quality Monitoring Results
A53: Parameter (unit) | C53: Limit* | D53: Normal Operation
D54: Bottom ash | F54: APC Residues
A56: Total Organic Carbon (average %) | C56: <3% | D56: 0.5
A57: No. of Assessments Undertaken | C57: --- | D57: 24 | F57: 4
A58: No. of Hazardous Results | C58: --- | D58: 0
A59: * The permit will specify a limit of either 5% loss on ignition or 3% total organic carbon. If both are measured anyway, please enter the results here, even where the limit does not apply.
A61: Comments :

Sheet Water
A1: =+'Cover Page'!$B$29 -> Annual Performance Report 2025 | E1: =+'Cover Page'!$B$33 -> Javelin Park Energy Recovery Facility
A3: Emissions to Water
A5: Summary of monitoring undertaken and compliance
A13: Commentary on any specific events
A14: Date & Event | C14: Description
A22: Emissions to Water / Sewer
A23: Parameter | D23: Monitoring Frequency | F23: Limit | G23: Target | H23: Max. | I23: Average

Sheet Air (periodic)
A1: =+'Cover Page'!$B$29 -> Annual Performance Report 2025 | E1: =+'Cover Page'!$B$33 -> Javelin Park Energy Recovery Facility
A3: Emissions to Air (periodically monitored)
A5: Summary of monitoring undertaken, standards used and compliance | K5: Notes:
A6: Periodic emissions monitoring undertaken in accordance with permit requirements | K6: Template may require adjustment for any bespoke monitoring requirements of permit - please also check that all default ELV values, reference periods and the stated oxygen reference value match those for your plant, and edit if necessary!
A9: Results of emissions to air that are periodically monitored - oxygen reference 11%
A10: Substance | C10: Ref. Period | D10: Emission Limit Value | F10: Average | K10: User to add additional tables as necessary, depending on whether quarterly or bi-annual reporting is required for the compliance year
F11: A1 | G11: A2 | H11: A3 | I11: A4 | J11: A5
A12: Hydrogen fluoride | C12: 1 hr | D12: 1 mg/m3 | F12: 0.09
A13: Cd and Tl and their compounds | C13: 0.5-8hrs | D13: 0.02 mg/m3 | F13: 0.0009
A14: Hg and its compounds | C14: 0.5-8hrs | D14: 0.02 mg/m3 | F14: 0.0007
A15: Sb, As, Pb, Cr, Co, Cu, Mn, Ni, V and their compounds | C15: 0.5-8hrs | D15: 0.3 mg/m3 | F15: 0.05
A16: Dioxins & Furans (I-TEQ) | C16: 6-8hrs | D16: 0.06 ng/m3 | F16: 0.0039
A17: PCBs (WHO-TEQ Humans / Mammals) | C17: 6-8hrs | D17: None set ng/m3 | F17: 0.012
A18: PCBs (WHO-TEQ Fish) | C18: 6-8hrs | D18: None set ng/m3 | F18: 0.0006
A19: PCBs (WHO-TEQ Birds) | C19: 6-8hrs | D19: None set ng/m3 | F19: 0.022
A20: Dioxins & Furans (WHO-TEQ Humans / Mammals) | C20: 6-8hrs | D20: None set ng/m3 | F20: 0.025
A21: Dioxins & Furans (WHO-TEQ Fish) | C21: 6-8hrs | D21: None set ng/m3 | F21: 0.028
A22: Dioxins & Furans (WHO-TEQ Birds) | C22: 6-8hrs | D22: None set ng/m3 | F22: 0.045
A23: Anthanthrene | C23: 6-8hrs | D23: None set µg/m3 | F23: 0.001
A24: Benzo(a)anthracene | C24: 6-8hrs | D24: None set µg/m3 | F24: 0.001
A25: Benzo(a)pyrene | C25: 6-8hrs | D25: None set µg/m3 | F25: 0.0005
A26: Benzo(b)fluoranthene | C26: 6-8hrs | D26: None set µg/m3 | F26: 0.0005
A27: Benzo(b)naptho(2,1-d) thiophene | C27: 6-8hrs | D27: None set µg/m3 | F27: 0.001
A28: Benzo(c)phenanthrene | C28: 6-8hrs | D28: None set µg/m3 | F28: 0.001
A29: Benzo(ghi)perylene | C29: 6-8hrs | D29: None set µg/m3 | F29: 0.005
A30: Benzo(k)fluoranthene | C30: 6-8hrs | D30: None set µg/m3 | F30: 0.001
A31: Cholanthrene | C31: 6-8hrs | D31: None set µg/m3 | F31: 0.001
A32: Chrysene | C32: 6-8hrs | D32: None set µg/m3 | F32: 0.0005
A33: Cyclopenta(cd)pyrene | C33: 6-8hrs | D33: None set µg/m3 | F33: 0.0055
A34: Dibenzo(ai)pyrene | C34: 6-8hrs | D34: None set µg/m3 | F34: 0.001
A35: Dibenzo(ah)anthracene | C35: 6-8hrs | D35: None set µg/m3 | F35: 0.001
A36: Fluoranthene | C36: 6-8hrs | D36: None set µg/m3 | F36: 0.03
A37: Indeno(123-cd) pyrene | C37: 6-8hrs | D37: None set µg/m3 | F37: 0.001
A38: Naphthalene | C38: 6-8hrs | D38: None set µg/m3 | F38: 0.05
A39: Comments :
A40: One dioxin breach recorded. Including the elevated result along with retests the average is 0.02ng/m3

Sheet Air (CEMS)
A1: =+'Cover Page'!$B$29 -> Annual Performance Report 2025 | I1: =+'Cover Page'!$B$33 -> Javelin Park Energy Recovery Facility
A3: Emissions to Air (continuously monitored)
N4: Notes:
A5: Summary of monitoring undertaken, standards used and compliance | N5: Template may require adjustment for any bespoke monitoring requirements of permit
N6: Please check that all default ELV values match those for your plant and edit if necessary!
N7: Report to 1 decimal place
A11: Results of emissions to air that are continuously monitored (maximum and average values for each line) - oxygen reference 11%
A12: Substance | B12: Reference Period | C12: Emission Limit Value | D12: A1 | F12: A2 | H12: A3 | J12: A4 | L12: A5
D13: Max. | E13: Avg. | F13: Max. | G13: Avg. | H13: Max. | I13: Avg. | J13: Max. | K13: Avg. | L13: Max. | M13: Avg.
A14: Oxides of nitrogen | B14: Daily mean | C14: 180 mg/m3 | D14: 174.5 | E14: 168.9
B15: ½ hourly mean | C15: 400 mg/m3 | D15: 261 | E15: 168.8
A16: Particulates | B16: Daily mean | C16: 5 mg/m3 | D16: 0.3 | E16: 0.1
B17: ½ hourly mean | C17: 30 mg/m3 | D17: 1 | E17: 0
A18: Total Organic Carbon | B18: Daily mean | C18: 10 mg/m3 | D18: 0.6 | E18: 0.1
B19: ½ hourly mean | C19: 20 mg/m3 | D19: 5 | E19: 0
A20: Hydrogen chloride | B20: Daily mean | C20: 8 mg/m3 | D20: 7.1 | E20: 6
B21: ½ hourly mean | C21: 60 mg/m3 | D21: 37 | E21: 5.9
A22: Sulphur dioxide | B22: Daily mean | C22: 40 mg/m3 | D22: 40.2 | E22: 11.8
B23: ½ hourly mean | C23: 200 mg/m3 | D23: 230 | E23: 11.8
A24: Carbon monoxide | B24: Daily mean | C24: 50 mg/m3 | D24: 5.5 | E24: 0.9
B26: 95%ile 10-min avg * | C26: 150 mg/m3 * | D26: 2.2 | E26: 0.8
A27: Ammonia | B27: Daily mean | C27: 15 mg/m3 | D27: 0.66 | E27: 0.1
A28: * = delete as appropriate, depending on whether your plant has half-hourly or 10-min CO ELVs
A29: Comments :

Sheet HCl
A1: =+'Cover Page'!$B$29 -> Annual Performance Report 2025 | E1: =+'Cover Page'!$B$33 -> Javelin Park Energy Recovery Facility
A3: Monitoring of Hydrogen Chloride emissions | D3: Whole Installation | G3: See Notes in Cell Q3 | J3: =+A3 -> Monitoring of Hydrogen Chloride emissions | N3: Per Combustion Line | Q3: Notes:
Q4: User to add logic to complete Whole installation, Table A5:G18. From the data in Per Combustion Line, Table J6:O79, subject to No. of lines installed
A5: =+'Cover Page'!C39 -> 2025 | B5: 1/2 Hourly Reference Periods | E5: Daily Reference Periods
A6: mg/Nm3 | B6: 1/2 hourly HCl ELV | C6: Monthly mean of half-hourly averages | D6: Highest half- hourly average | E6: Daily HCl ELV | F6: Monthly mean of daily averages | G6: Highest daily average | J6: =+A5 -> 2025 | K6: mg/Nm3 | L6: Monthly mean of half-hourly averages | M6: Highest half- hourly average | N6: Monthly mean of daily averages | O6: Highest daily average
A7: Jan | B7: 60 | C7: 6 | D7: 15 | E7: 8 | F7: 6.119354839 | G7: 7 | J7: A1 | K7: Jan | L7: 6 | M7: 15 | N7: 6.119354839 | O7: 7
A8: Feb | B8: 60 | C8: 6 | D8: 16 | E8: 8 | F8: 5.658571429 | G8: 7 | K8: Feb | L8: 6 | M8: 16 | N8: 5.658571429 | O8: 7
A9: Mar | B9: 60 | C9: 6 | D9: 19 | E9: 8 | F9: 6.288709677 | G9: 7 | K9: Mar | L9: 6 | M9: 19 | N9: 6.288709677 | O9: 7 | Q9: Whole Installation table A5:G18:
A10: Apr | B10: 60 | C10: 6 | D10: 22 | E10: 8 | F10: 6.2492 | G10: 7 | K10: Apr | L10: 6 | M10: 22 | N10: 6.2492 | O10: 7 | Q10: Mean: for 1/2 hourly and daily periods calculate mean of values across all operational combustion lines for the month
A11: May | B11: 60 | C11: 6 | D11: 17 | E11: 8 | F11: 5.741923077 | G11: 6 | K11: May | L11: 6 | M11: 17 | N11: 5.741923077 | O11: 6
A12: Jun | B12: 60 | C12: 6 | D12: 16 | E12: 8 | F12: 5.966333333 | G12: 6 | K12: Jun | L12: 6 | M12: 16 | N12: 5.966333333 | O12: 6
A13: Jul | B13: 60 | C13: 6 | D13: 37 | E13: 8 | F13: 6.198709677 | G13: 7 | K13: Jul | L13: 6 | M13: 37 | N13: 6.198709677 | O13: 7 | Q13: Maximum: for 1/2 hourly and daily periods use the highest value across all operational combustion lines for the month
A14: Aug | B14: 60 | C14: 6 | D14: 29 | E14: 8 | F14: 6.275 | G14: 7 | K14: Aug | L14: 6 | M14: 29 | N14: 6.275 | O14: 7
A15: Sep | B15: 60 | C15: 5 | D15: 18 | E15: 8 | F15: 5.595454545 | G15: 6 | K15: Sep | L15: 5 | M15: 18 | N15: 5.595454545 | O15: 6
A16: Oct | B16: 60 | C16: 6 | D16: 10 | E16: 8 | F16: 6.177666667 | G16: 7 | K16: Oct | L16: 6 | M16: 10 | N16: 6.177666667 | O16: 7
A17: Nov | B17: 60 | C17: 6 | D17: 11 | E17: 8 | F17: 6.133666667 | G17: 7 | K17: Nov | L17: 6 | M17: 11 | N17: 6.133666667 | O17: 7
A18: Dec | B18: 60 | C18: 6 | D18: 11 | E18: 8 | F18: 6.097741935 | G18: 6 | K18: Dec | L18: 6 | M18: 11 | N18: 6.097741935 | O18: 6
K19: Annual | L19: =AVERAGE(L7:L18) -> 5.916666667 | M19: =MAX(M7:M18) -> 37 | N19: =AVERAGE(N7:N18) -> 6.041860987 | O19: =MAX(O7:O18) -> 7
J21: =+A5 -> 2025 | K21: mg/Nm3 | L21: Monthly mean of half-hourly averages | M21: Highest half- hourly average | N21: Monthly mean of daily averages | O21: Highest daily average
J22: A2 | K22: Jan
K23: Feb
K24: Mar
K25: Apr
K26: May
K27: Jun
K28: Jul
K29: Aug
K30: Sep
K31: Oct
K32: Nov
K33: Dec
K34: Annual | L34: =AVERAGE(L22:L33) ->  | M34: =MAX(M22:M33) -> 0 | N34: =AVERAGE(N22:N33) ->  | O34: =MAX(O22:O33) -> 0
J36: =+A5 -> 2025 | K36: mg/Nm3 | L36: Monthly mean of half-hourly averages | M36: Highest half- hourly average | N36: Monthly mean of daily averages | O36: Highest daily average
J37: A3 | K37: Jan
K38: Feb
K39: Mar
K40: Apr
K41: May
K42: Jun
K43: Jul
K44: Aug
K45: Sep
K46: Oct
K47: Nov
A48: Comments : | K48: Dec
K49: Annual | L49: =AVERAGE(L37:L48) ->  | M49: =MAX(M37:M48) -> 0 | N49: =AVERAGE(N37:N48) ->  | O49: =MAX(O37:O48) -> 0
J51: =+A5 -> 2025 | K51: mg/Nm3 | L51: Monthly mean of half-hourly averages | M51: Highest half- hourly average | N51: Monthly mean of daily averages | O51: Highest daily average
J52: A4 | K52: Jan
K53: Feb
K54: Mar
K55: Apr
K56: May
K57: Jun
K58: Jul
K59: Aug
K60: Sep
K61: Oct
K62: Nov
K63: Dec
K64: Annual | L64: =AVERAGE(L52:L63) ->  | M64: =MAX(M52:M63) -> 0 | N64: =AVERAGE(N52:N63) ->  | O64: =MAX(O52:O63) -> 0
J66: =+A5 -> 2025 | K66: mg/Nm3 | L66: Monthly mean of half-hourly averages | M66: Highest half- hourly average | N66: Monthly mean of daily averages | O66: Highest daily average
J67: A5 | K67: Jan
K68: Feb
K69: Mar
K70: Apr
K71: May
K72: Jun
K73: Jul
K74: Aug
K75: Sep
K76: Oct
K77: Nov
K78: Dec
K79: Annual | L79: =AVERAGE(L67:L78) ->  | M79: =MAX(M67:M78) -> 0 | N79: =AVERAGE(N67:N78) ->  | O79: =MAX(O67:O78) -> 0

Sheet SO2
A1: =+'Cover Page'!$B$29 -> Annual Performance Report 2025 | E1: =+'Cover Page'!$B$33 -> Javelin Park Energy Recovery Facility
A3: Monitoring of Sulphur dioxide emissions | D3: Whole Installation | G3: See Notes in Cell Q3 | J3: =+A3 -> Monitoring of Sulphur dioxide emissions | N3: Per Combustion Line | Q3: Notes:
Q4: User to add logic to complete Whole installation, Table A5:G18. From the data in Per Combustion Line, Table J6:O79, subject to No. of lines installed
A5: =+'Cover Page'!C39 -> 2025 | B5: 1/2 Hourly Reference Periods | E5: Daily Reference Periods
A6: mg/Nm3 | B6: 1/2 hourly SO2 ELV | C6: Monthly mean of half-hourly averages | D6: Highest half- hourly average | E6: Daily SO2 ELV | F6: Monthly mean of daily averages | G6: Highest daily average | J6: =+A5 -> 2025 | K6: mg/Nm3 | L6: Monthly mean of half-hourly averages | M6: Highest half- hourly average | N6: Monthly mean of daily averages | O6: Highest daily average
A7: Jan | B7: 200 | C7: 17 | D7: 158 | E7: 40 | F7: 16.65677419 | G7: 30 | J7: A1 | K7: Jan | L7: 17 | M7: 158 | N7: 16.65677419 | O7: 30
A8: Feb | B8: 200 | C8: 15 | D8: 128 | E8: 40 | F8: 15.05071429 | G8: 32 | K8: Feb | L8: 15 | M8: 128 | N8: 15.05071429 | O8: 32
A9: Mar | B9: 200 | C9: 13 | D9: 111 | E9: 40 | F9: 13.1983871 | G9: 22 | K9: Mar | L9: 13 | M9: 111 | N9: 13.1983871 | O9: 22 | Q9: Whole Installation table A5:G18:
A10: Apr | B10: 200 | C10: 10 | D10: 66 | E10: 40 | F10: 9.9624 | G10: 13 | K10: Apr | L10: 10 | M10: 66 | N10: 9.9624 | O10: 13 | Q10: Mean: for 1/2 hourly and daily periods calculate mean of values across all operational combustion lines for the month
A11: May | B11: 200 | C11: 11 | D11: 230 | E11: 40 | F11: 10.69269231 | G11: 40 | K11: May | L11: 11 | M11: 230 | N11: 10.69269231 | O11: 40
A12: Jun | B12: 200 | C12: 9 | D12: 39 | E12: 40 | F12: 8.603666667 | G12: 12 | K12: Jun | L12: 9 | M12: 39 | N12: 8.603666667 | O12: 12
A13: Jul | B13: 200 | C13: 10 | D13: 73 | E13: 40 | F13: 9.839354839 | G13: 15 | K13: Jul | L13: 10 | M13: 73 | N13: 9.839354839 | O13: 15 | Q13: Maximum: for 1/2 hourly and daily periods use the highest value across all operational combustion lines for the month
A14: Aug | B14: 200 | C14: 8 | D14: 68 | E14: 40 | F14: 7.6475 | G14: 10 | K14: Aug | L14: 8 | M14: 68 | N14: 7.6475 | O14: 10
A15: Sep | B15: 200 | C15: 12 | D15: 67 | E15: 40 | F15: 12.04454545 | G15: 20 | K15: Sep | L15: 12 | M15: 67 | N15: 12.04454545 | O15: 20
A16: Oct | B16: 200 | C16: 12 | D16: 43 | E16: 40 | F16: 12.044 | G16: 17 | K16: Oct | L16: 12 | M16: 43 | N16: 12.044 | O16: 17
A17: Nov | B17: 200 | C17: 13 | D17: 49 | E17: 40 | F17: 13.223 | G17: 19 | K17: Nov | L17: 13 | M17: 49 | N17: 13.223 | O17: 19
A18: Dec | B18: 200 | C18: 12 | D18: 46 | E18: 40 | F18: 12.27387097 | G18: 17 | K18: Dec | L18: 12 | M18: 46 | N18: 12.27387097 | O18: 17
K19: Annual | L19: =AVERAGE(L7:L18) -> 11.83333333 | M19: =MAX(M7:M18) -> 230 | N19: =AVERAGE(N7:N18) -> 11.76974215 | O19: =MAX(O7:O18) -> 40
J21: =+A5 -> 2025 | K21: mg/Nm3 | L21: Monthly mean of half-hourly averages | M21: Highest half- hourly average | N21: Monthly mean of daily averages | O21: Highest daily average
J22: A2 | K22: Jan
K23: Feb
K24: Mar
K25: Apr
K26: May
K27: Jun
K28: Jul
K29: Aug
K30: Sep
K31: Oct
K32: Nov
K33: Dec
K34: Annual | L34: =AVERAGE(L22:L33) ->  | M34: =MAX(M22:M33) -> 0 | N34: =AVERAGE(N22:N33) ->  | O34: =MAX(O22:O33) -> 0
J36: =+A5 -> 2025 | K36: mg/Nm3 | L36: Monthly mean of half-hourly averages | M36: Highest half- hourly average | N36: Monthly mean of daily averages | O36: Highest daily average
J37: A3 | K37: Jan
K38: Feb
K39: Mar
K40: Apr
K41: May
K42: Jun
K43: Jul
K44: Aug
K45: Sep
K46: Oct
K47: Nov
A48: Comments : | K48: Dec
K49: Annual | L49: =AVERAGE(L37:L48) ->  | M49: =MAX(M37:M48) -> 0 | N49: =AVERAGE(N37:N48) ->  | O49: =MAX(O37:O48) -> 0
J51: =+A5 -> 2025 | K51: mg/Nm3 | L51: Monthly mean of half-hourly averages | M51: Highest half- hourly average | N51: Monthly mean of daily averages | O51: Highest daily average
J52: A4 | K52: Jan
K53: Feb
K54: Mar
K55: Apr
K56: May
K57: Jun
K58: Jul
K59: Aug
K60: Sep
K61: Oct
K62: Nov
K63: Dec
K64: Annual | L64: =AVERAGE(L52:L63) ->  | M64: =MAX(M52:M63) -> 0 | N64: =AVERAGE(N52:N63) ->  | O64: =MAX(O52:O63) -> 0
J66: =+A5 -> 2025 | K66: mg/Nm3 | L66: Monthly mean of half-hourly averages | M66: Highest half- hourly average | N66: Monthly mean of daily averages | O66: Highest daily average
J67: A5 | K67: Jan
K68: Feb
K69: Mar
K70: Apr
K71: May
K72: Jun
K73: Jul
K74: Aug
K75: Sep
K76: Oct
K77: Nov
K78: Dec
K79: Annual | L79: =AVERAGE(L67:L78) ->  | M79: =MAX(M67:M78) -> 0 | N79: =AVERAGE(N67:N78) ->  | O79: =MAX(O67:O78) -> 0

Sheet NOx
A1: =+'Cover Page'!$B$29 -> Annual Performance Report 2025 | E1: =+'Cover Page'!$B$33 -> Javelin Park Energy Recovery Facility
A3: Monitoring of Oxides of Nitrogen emissions | D3: Whole Installation | G3: See Notes in Cell Q3 | J3: =+A3 -> Monitoring of Oxides of Nitrogen emissions | N3: Per Combustion Line | Q3: Notes:
Q4: User to add logic to complete Whole installation, Table A5:G18. From the data in Per Combustion Line, Table J6:O79, subject to No. of lines installed
A5: =+'Cover Page'!C39 -> 2025 | B5: 1/2 Hourly Reference Periods | E5: Daily Reference Periods
A6: mg/Nm3 | B6: 1/2 hourly NOx ELV | C6: Monthly mean of half-hourly averages | D6: Highest half- hourly average | E6: Daily NOx ELV | F6: Monthly mean of daily averages | G6: Highest daily average | J6: =+A5 -> 2025 | K6: mg/Nm3 | L6: Monthly mean of half-hourly averages | M6: Highest half- hourly average | N6: Monthly mean of daily averages | O6: Highest daily average
A7: Jan | B7: 400 | C7: 169 | D7: 198 | E7: 180 | F7: 169.3519355 | G7: 171 | J7: A1 | K7: Jan | L7: 169 | M7: 198 | N7: 169.3519355 | O7: 171
A8: Feb | B8: 400 | C8: 170 | D8: 208 | E8: 180 | F8: 169.6985714 | G8: 173 | K8: Feb | L8: 170 | M8: 208 | N8: 169.6985714 | O8: 173
A9: Mar | B9: 400 | C9: 169 | D9: 200 | E9: 180 | F9: 169.2777419 | G9: 174 | K9: Mar | L9: 169 | M9: 200 | N9: 169.2777419 | O9: 174 | Q9: Whole Installation table A5:G18:
A10: Apr | B10: 400 | C10: 170 | D10: 226 | E10: 180 | F10: 169.9324 | G10: 173 | K10: Apr | L10: 170 | M10: 226 | N10: 169.9324 | O10: 173 | Q10: Mean: for 1/2 hourly and daily periods calculate mean of values across all operational combustion lines for the month
A11: May | B11: 400 | C11: 169 | D11: 261 | E11: 180 | F11: 168.8869231 | G11: 174 | K11: May | L11: 169 | M11: 261 | N11: 168.8869231 | O11: 174
A12: Jun | B12: 400 | C12: 170 | D12: 215 | E12: 180 | F12: 170.4223333 | G12: 174 | K12: Jun | L12: 170 | M12: 215 | N12: 170.4223333 | O12: 174
A13: Jul | B13: 400 | C13: 168 | D13: 212 | E13: 180 | F13: 168.3745161 | G13: 174 | K13: Jul | L13: 168 | M13: 212 | N13: 168.3745161 | O13: 174 | Q13: Maximum: for 1/2 hourly and daily periods use the highest value across all operational combustion lines for the month
A14: Aug | B14: 400 | C14: 168 | D14: 230 | E14: 180 | F14: 168.5103571 | G14: 172 | K14: Aug | L14: 168 | M14: 230 | N14: 168.5103571 | O14: 172
A15: Sep | B15: 400 | C15: 169 | D15: 207 | E15: 180 | F15: 167.8127273 | G15: 175 | K15: Sep | L15: 169 | M15: 207 | N15: 167.8127273 | O15: 175
A16: Oct | B16: 400 | C16: 169 | D16: 222 | E16: 180 | F16: 168.57 | G16: 173 | K16: Oct | L16: 169 | M16: 222 | N16: 168.57 | O16: 173
A17: Nov | B17: 400 | C17: 167 | D17: 207 | E17: 180 | F17: 167.147 | G17: 170 | K17: Nov | L17: 167 | M17: 207 | N17: 167.147 | O17: 170
A18: Dec | B18: 400 | C18: 168 | D18: 232 | E18: 180 | F18: 168.426129 | G18: 174 | K18: Dec | L18: 168 | M18: 232 | N18: 168.426129 | O18: 174
K19: Annual | L19: =AVERAGE(L7:L18) -> 168.8333333 | M19: =MAX(M7:M18) -> 261 | N19: =AVERAGE(N7:N18) -> 168.8675529 | O19: =MAX(O7:O18) -> 175
J21: =+A5 -> 2025 | K21: mg/Nm3 | L21: Monthly mean of half-hourly averages | M21: Highest half- hourly average | N21: Monthly mean of daily averages | O21: Highest daily average
J22: A2 | K22: Jan
K23: Feb
K24: Mar
K25: Apr
K26: May
K27: Jun
K28: Jul
K29: Aug
K30: Sep
K31: Oct
K32: Nov
K33: Dec
K34: Annual | L34: =AVERAGE(L22:L33) ->  | M34: =MAX(M22:M33) -> 0 | N34: =AVERAGE(N22:N33) ->  | O34: =MAX(O22:O33) -> 0
J36: =+A5 -> 2025 | K36: mg/Nm3 | L36: Monthly mean of half-hourly averages | M36: Highest half- hourly average | N36: Monthly mean of daily averages | O36: Highest daily average
J37: A3 | K37: Jan
K38: Feb
K39: Mar
K40: Apr
K41: May
K42: Jun
K43: Jul
K44: Aug
K45: Sep
K46: Oct
K47: Nov
A48: Comments : | K48: Dec
K49: Annual | L49: =AVERAGE(L37:L48) ->  | M49: =MAX(M37:M48) -> 0 | N49: =AVERAGE(N37:N48) ->  | O49: =MAX(O37:O48) -> 0
J51: =+A5 -> 2025 | K51: mg/Nm3 | L51: Monthly mean of half-hourly averages | M51: Highest half- hourly average | N51: Monthly mean of daily averages | O51: Highest daily average
J52: A4 | K52: Jan
K53: Feb
K54: Mar
K55: Apr
K56: May
K57: Jun
K58: Jul
K59: Aug
K60: Sep
K61: Oct
K62: Nov
K63: Dec
K64: Annual | L64: =AVERAGE(L52:L63) ->  | M64: =MAX(M52:M63) -> 0 | N64: =AVERAGE(N52:N63) ->  | O64: =MAX(O52:O63) -> 0
J66: =+A5 -> 2025 | K66: mg/Nm3 | L66: Monthly mean of half-hourly averages | M66: Highest half- hourly average | N66: Monthly mean of daily averages | O66: Highest daily average
J67: A5 | K67: Jan
K68: Feb
K69: Mar
K70: Apr
K71: May
K72: Jun
K73: Jul
K74: Aug
K75: Sep
K76: Oct
K77: Nov
K78: Dec
K79: Annual | L79: =AVERAGE(L67:L78) ->  | M79: =MAX(M67:M78) -> 0 | N79: =AVERAGE(N67:N78) ->  | O79: =MAX(O67:O78) -> 0

Sheet TOC
A1: =+'Cover Page'!$B$29 -> Annual Performance Report 2025 | E1: =+'Cover Page'!$B$33 -> Javelin Park Energy Recovery Facility
A3: Monitoring of Total organic carbon emissions | D3: Whole Installation | G3: See Notes in Cell Q3 | J3: =+A3 -> Monitoring of Total organic carbon emissions | N3: Per Combustion Line | Q3: Notes:
Q4: User to add logic to complete Whole installation, Table A5:G18. From the data in Per Combustion Line, Table J6:O79, subject to No. of lines installed
A5: =+'Cover Page'!C39 -> 2025 | B5: 1/2 Hourly Reference Periods | E5: Daily Reference Periods
A6: mg/Nm3 | B6: 1/2 hourly TOC ELV | C6: Monthly mean of half-hourly averages | D6: Highest half- hourly average | E6: Daily TOC ELV | F6: Monthly mean of daily averages | G6: Highest daily average | J6: =+A5 -> 2025 | K6: mg/Nm3 | L6: Monthly mean of half-hourly averages | M6: Highest half- hourly average | N6: Monthly mean of daily averages | O6: Highest daily average
A7: Jan | B7: 20 | C7: 0 | D7: 3 | E7: 10 | F7: -0.01193548387 | G7: 0 | J7: A1 | K7: Jan | L7: 0 | M7: 3 | N7: -0.01193548387 | O7: 0
A8: Feb | B8: 20 | C8: 0 | D8: 4 | E8: 10 | F8: 0.2064285714 | G8: 1 | K8: Feb | L8: 0 | M8: 4 | N8: 0.2064285714 | O8: 1
A9: Mar | B9: 20 | C9: 0 | D9: 2 | E9: 10 | F9: 0.1893548387 | G9: 1 | K9: Mar | L9: 0 | M9: 2 | N9: 0.1893548387 | O9: 1 | Q9: Whole Installation table A5:G18:
A10: Apr | B10: 20 | C10: 0 | D10: 3 | E10: 10 | F10: 0.0508 | G10: 0 | K10: Apr | L10: 0 | M10: 3 | N10: 0.0508 | O10: 0 | Q10: Mean: for 1/2 hourly and daily periods calculate mean of values across all operational combustion lines for the month
A11: May | B11: 20 | C11: 0 | D11: 3 | E11: 10 | F11: 0.2064 | G11: 0 | K11: May | L11: 0 | M11: 3 | N11: 0.2064 | O11: 0
A12: Jun | B12: 20 | C12: 0 | D12: 5 | E12: 10 | F12: 0.181 | G12: 0 | K12: Jun | L12: 0 | M12: 5 | N12: 0.181 | O12: 0
A13: Jul | B13: 20 | C13: 0 | D13: 3 | E13: 10 | F13: 0.1764516129 | G13: 0 | K13: Jul | L13: 0 | M13: 3 | N13: 0.1764516129 | O13: 0 | Q13: Maximum: for 1/2 hourly and daily periods use the highest value across all operational combustion lines for the month
A14: Aug | B14: 20 | C14: 0 | D14: 2 | E14: 10 | F14: 0.1932142857 | G14: 0 | K14: Aug | L14: 0 | M14: 2 | N14: 0.1932142857 | O14: 0
A15: Sep | B15: 20 | C15: 0 | D15: 2 | E15: 10 | F15: 0.2345454545 | G15: 0 | K15: Sep | L15: 0 | M15: 2 | N15: 0.2345454545 | O15: 0
A16: Oct | B16: 20 | C16: 0 | D16: 3 | E16: 10 | F16: 0.139 | G16: 0 | K16: Oct | L16: 0 | M16: 3 | N16: 0.139 | O16: 0
A17: Nov | B17: 20 | C17: 0 | D17: 3 | E17: 10 | F17: -0.009 | G17: 0 | K17: Nov | L17: 0 | M17: 3 | N17: -0.009 | O17: 0
A18: Dec | B18: 20 | C18: 0 | D18: 2 | E18: 10 | F18: 0.0835483871 | G18: 0 | K18: Dec | L18: 0 | M18: 2 | N18: 0.0835483871 | O18: 0
K19: Annual | L19: =AVERAGE(L7:L18) -> 0 | M19: =MAX(M7:M18) -> 5 | N19: =AVERAGE(N7:N18) -> 0.1366506389 | O19: =MAX(O7:O18) -> 1
J21: =+A5 -> 2025 | K21: mg/Nm3 | L21: Monthly mean of half-hourly averages | M21: Highest half- hourly average | N21: Monthly mean of daily averages | O21: Highest daily average
J22: A2 | K22: Jan
K23: Feb
K24: Mar
K25: Apr
K26: May
K27: Jun
K28: Jul
K29: Aug
K30: Sep
K31: Oct
K32: Nov
K33: Dec
K34: Annual | L34: =AVERAGE(L22:L33) ->  | M34: =MAX(M22:M33) -> 0 | N34: =AVERAGE(N22:N33) ->  | O34: =MAX(O22:O33) -> 0
J36: =+A5 -> 2025 | K36: mg/Nm3 | L36: Monthly mean of half-hourly averages | M36: Highest half- hourly average | N36: Monthly mean of daily averages | O36: Highest daily average
J37: A3 | K37: Jan
K38: Feb
K39: Mar
K40: Apr
K41: May
K42: Jun
K43: Jul
K44: Aug
K45: Sep
K46: Oct
K47: Nov
A48: Comments : | K48: Dec
K49: Annual | L49: =AVERAGE(L37:L48) ->  | M49: =MAX(M37:M48) -> 0 | N49: =AVERAGE(N37:N48) ->  | O49: =MAX(O37:O48) -> 0
J51: =+A5 -> 2025 | K51: mg/Nm3 | L51: Monthly mean of half-hourly averages | M51: Highest half- hourly average | N51: Monthly mean of daily averages | O51: Highest daily average
J52: A4 | K52: Jan
K53: Feb
K54: Mar
K55: Apr
K56: May
K57: Jun
K58: Jul
K59: Aug
K60: Sep
K61: Oct
K62: Nov
K63: Dec
K64: Annual | L64: =AVERAGE(L52:L63) ->  | M64: =MAX(M52:M63) -> 0 | N64: =AVERAGE(N52:N63) ->  | O64: =MAX(O52:O63) -> 0
J66: =+A5 -> 2025 | K66: mg/Nm3 | L66: Monthly mean of half-hourly averages | M66: Highest half- hourly average | N66: Monthly mean of daily averages | O66: Highest daily average
J67: A5 | K67: Jan
K68: Feb
K69: Mar
K70: Apr
K71: May
K72: Jun
K73: Jul
K74: Aug
K75: Sep
K76: Oct
K77: Nov
K78: Dec
K79: Annual | L79: =AVERAGE(L67:L78) ->  | M79: =MAX(M67:M78) -> 0 | N79: =AVERAGE(N67:N78) ->  | O79: =MAX(O67:O78) -> 0

Sheet Particulates
A1: =+'Cover Page'!$B$29 -> Annual Performance Report 2025 | E1: =+'Cover Page'!$B$33 -> Javelin Park Energy Recovery Facility
A3: Monitoring of Particulate matter emissions | D3: Whole Installation | G3: See Notes in Cell Q3 | J3: =+A3 -> Monitoring of Particulate matter emissions | N3: Per Combustion Line | Q3: Notes:
A5: =+'Cover Page'!C39 -> 2025 | B5: 1/2 Hourly Reference Periods | E5: Daily Reference Periods | Q5: User to add logic to complete Whole installation, Table A5:G18. From the data in Per Combustion Line, Table J6:O79, subject to No. of lines installed
A6: mg/Nm3 | B6: 1/2 hourly PM ELV | C6: Monthly mean of half-hourly averages | D6: Highest half- hourly average | E6: Daily PM ELV | F6: Monthly mean of daily averages | G6: Highest daily average | J6: =+A5 -> 2025 | K6: mg/Nm3 | L6: Monthly mean of half-hourly averages | M6: Highest half- hourly average | N6: Monthly mean of daily averages | O6: Highest daily average
A7: Jan | B7: 30 | C7: 0 | D7: 0 | E7: 5 | F7: 0.1367741935 | G7: 0 | J7: A1 | K7: Jan | L7: 0 | M7: 0 | N7: 0.1367741935 | O7: 0
A8: Feb | B8: 30 | C8: 0 | D8: 0 | E8: 5 | F8: 0.1275 | G8: 0 | K8: Feb | L8: 0 | M8: 0 | N8: 0.1275 | O8: 0
A9: Mar | B9: 30 | C9: 0 | D9: 0 | E9: 5 | F9: 0.1051612903 | G9: 0 | K9: Mar | L9: 0 | M9: 0 | N9: 0.1051612903 | O9: 0
A10: Apr | B10: 30 | C10: 0 | D10: 0 | E10: 5 | F10: 0.0988 | G10: 0 | K10: Apr | L10: 0 | M10: 0 | N10: 0.0988 | O10: 0 | Q10: Whole Installation table A5:G18:
A11: May | B11: 30 | C11: 0 | D11: 0 | E11: 5 | F11: 0.1003846154 | G11: 0 | K11: May | L11: 0 | M11: 0 | N11: 0.1003846154 | O11: 0 | Q11: Mean: for 1/2 hourly and daily periods calculate mean of values across all operational combustion lines for the month
A12: Jun | B12: 30 | C12: 0 | D12: 0 | E12: 5 | F12: 0.1026666667 | G12: 0 | K12: Jun | L12: 0 | M12: 0 | N12: 0.1026666667 | O12: 0
A13: Jul | B13: 30 | C13: 0 | D13: 0 | E13: 5 | F13: 0.1019354839 | G13: 0 | K13: Jul | L13: 0 | M13: 0 | N13: 0.1019354839 | O13: 0
A14: Aug | B14: 30 | C14: 0 | D14: 1 | E14: 5 | F14: 0.2142857143 | G14: 0 | K14: Aug | L14: 0 | M14: 1 | N14: 0.2142857143 | O14: 0 | Q14: Maximum: for 1/2 hourly and daily periods use the highest value across all operational combustion lines for the month
A15: Sep | B15: 30 | C15: 0 | D15: 1 | E15: 5 | F15: 0.1963636364 | G15: 0 | K15: Sep | L15: 0 | M15: 1 | N15: 0.1963636364 | O15: 0
A16: Oct | B16: 30 | C16: 0 | D16: 0 | E16: 5 | F16: 0.1496666667 | G16: 0 | K16: Oct | L16: 0 | M16: 0 | N16: 0.1496666667 | O16: 0
A17: Nov | B17: 30 | C17: 0 | D17: 0 | E17: 5 | F17: 0.1663333333 | G17: 0 | K17: Nov | L17: 0 | M17: 0 | N17: 0.1663333333 | O17: 0
A18: Dec | B18: 30 | C18: 0 | D18: 0 | E18: 5 | F18: 0.1729032258 | G18: 0 | K18: Dec | L18: 0 | M18: 0 | N18: 0.1729032258 | O18: 0
K19: Annual | L19: =AVERAGE(L7:L18) -> 0 | M19: =MAX(M7:M18) -> 1 | N19: =AVERAGE(N7:N18) -> 0.1393979022 | O19: =MAX(O7:O18) -> 0
J21: =+A5 -> 2025 | K21: mg/Nm3 | L21: Monthly mean of half-hourly averages | M21: Highest half- hourly average | N21: Monthly mean of daily averages | O21: Highest daily average
J22: A2 | K22: Jan
K23: Feb
K24: Mar
K25: Apr
K26: May
K27: Jun
K28: Jul
K29: Aug
K30: Sep
K31: Oct
K32: Nov
K33: Dec
K34: Annual | L34: =AVERAGE(L22:L33) ->  | M34: =MAX(M22:M33) -> 0 | N34: =AVERAGE(N22:N33) ->  | O34: =MAX(O22:O33) -> 0
J36: =+A5 -> 2025 | K36: mg/Nm3 | L36: Monthly mean of half-hourly averages | M36: Highest half- hourly average | N36: Monthly mean of daily averages | O36: Highest daily average
J37: A3 | K37: Jan
K38: Feb
K39: Mar
K40: Apr
K41: May
K42: Jun
K43: Jul
K44: Aug
K45: Sep
K46: Oct
K47: Nov
A48: Comments : | K48: Dec
K49: Annual | L49: =AVERAGE(L37:L48) ->  | M49: =MAX(M37:M48) -> 0 | N49: =AVERAGE(N37:N48) ->  | O49: =MAX(O37:O48) -> 0
J51: =+A5 -> 2025 | K51: mg/Nm3 | L51: Monthly mean of half-hourly averages | M51: Highest half- hourly average | N51: Monthly mean of daily averages | O51: Highest daily average
J52: A4 | K52: Jan
K53: Feb
K54: Mar
K55: Apr
K56: May
K57: Jun
K58: Jul
K59: Aug
K60: Sep
K61: Oct
K62: Nov
K63: Dec
K64: Annual | L64: =AVERAGE(L52:L63) ->  | M64: =MAX(M52:M63) -> 0 | N64: =AVERAGE(N52:N63) ->  | O64: =MAX(O52:O63) -> 0
J66: =+A5 -> 2025 | K66: mg/Nm3 | L66: Monthly mean of half-hourly averages | M66: Highest half- hourly average | N66: Monthly mean of daily averages | O66: Highest daily average
J67: A5 | K67: Jan
K68: Feb
K69: Mar
K70: Apr
K71: May
K72: Jun
K73: Jul
K74: Aug
K75: Sep
K76: Oct
K77: Nov
K78: Dec
K79: Annual | L79: =AVERAGE(L67:L78) ->  | M79: =MAX(M67:M78) -> 0 | N79: =AVERAGE(N67:N78) ->  | O79: =MAX(O67:O78) -> 0

Sheet CO 0.5 hourly
A1: =+'Cover Page'!$B$29 -> Annual Performance Report 2025 | E1: =+'Cover Page'!$B$33 -> Javelin Park Energy Recovery Facility
A3: Monitoring of Carbon Monoxide (half hourly) | D3: Whole Installation | G3: See Notes in Cell Q3 | J3: =+A3 -> Monitoring of Carbon Monoxide (half hourly) | N3: Per Combustion Line | Q3: Notes:
A5: Please complete this tab for your plant if you have 1/2 hourly CO ELVs; otherwise, leave it blank and complete the CO 95% 10 min tab
Q7: User to add logic to complete Whole installation, Table A5:G18. From the data in Per Combustion Line, Table J6:O79, subject to No. of lines installed
A8: =+'Cover Page'!C39 -> 2025 | B8: 1/2 Hourly Reference Periods | E8: Daily Reference Periods
A9: mg/Nm3 | B9: 1/2 hourly CO ELV | C9: Monthly mean of half-hourly averages | D9: Highest half- hourly average | E9: Daily CO ELV | F9: Monthly mean of daily averages | G9: Highest daily average | J9: =+A8 -> 2025 | K9: mg/Nm3 | L9: Monthly mean of half-hourly averages | M9: Highest half- hourly average | N9: Monthly mean of daily averages | O9: Highest daily average
A10: Jan | B10: 100 | E10: 50 | J10: A1 | K10: Jan
A11: Feb | B11: =+B10 -> 100 | E11: =+E10 -> 50 | K11: Feb
A12: Mar | B12: =+B11 -> 100 | E12: =+E11 -> 50 | K12: Mar | Q12: Whole Installation table A5:G18:
A13: Apr | B13: 100 | E13: 50 | K13: Apr | Q13: Mean: for 1/2 hourly and daily periods calculate mean of values across all operational combustion lines for the month
A14: May | B14: 100 | E14: 50 | K14: May
A15: Jun | B15: 100 | E15: 50 | K15: Jun
A16: Jul | B16: 100 | E16: 50 | K16: Jul | Q16: Maximum: for 1/2 hourly and daily periods use the highest value across all operational combustion lines for the month
A17: Aug | B17: 100 | E17: 50 | K17: Aug
A18: Sep | B18: 100 | E18: 50 | K18: Sep
A19: Oct | B19: 100 | E19: 50 | K19: Oct
A20: Nov | B20: 100 | E20: 50 | K20: Nov
A21: Dec | B21: 100 | E21: 50 | K21: Dec
K22: Annual | L22: =AVERAGE(L10:L21) ->  | M22: =MAX(M10:M21) -> 0 | N22: =AVERAGE(N10:N21) ->  | O22: =MAX(O10:O21) -> 0
J24: =+A8 -> 2025 | K24: mg/Nm3 | L24: Monthly mean of half-hourly averages | M24: Highest half- hourly average | N24: Monthly mean of daily averages | O24: Highest daily average
J25: A2 | K25: Jan
K26: Feb
K27: Mar
K28: Apr
K29: May
K30: Jun
K31: Jul
K32: Aug
K33: Sep
K34: Oct
K35: Nov
K36: Dec
K37: Annual | L37: =AVERAGE(L25:L36) ->  | M37: =MAX(M25:M36) -> 0 | N37: =AVERAGE(N25:N36) ->  | O37: =MAX(O25:O36) -> 0
J39: =+A8 -> 2025 | K39: mg/Nm3 | L39: Monthly mean of half-hourly averages | M39: Highest half- hourly average | N39: Monthly mean of daily averages | O39: Highest daily average
J40: A3 | K40: Jan
K41: Feb
K42: Mar
K43: Apr
K44: May
K45: Jun
K46: Jul
K47: Aug
K48: Sep
K49: Oct
K50: Nov
A51: Comments : | K51: Dec
K52: Annual | L52: =AVERAGE(L40:L51) ->  | M52: =MAX(M40:M51) -> 0 | N52: =AVERAGE(N40:N51) ->  | O52: =MAX(O40:O51) -> 0
J54: =+A8 -> 2025 | K54: mg/Nm3 | L54: Monthly mean of half-hourly averages | M54: Highest half- hourly average | N54: Monthly mean of daily averages | O54: Highest daily average
J55: A4 | K55: Jan
K56: Feb
K57: Mar
K58: Apr
K59: May
K60: Jun
K61: Jul
K62: Aug
K63: Sep
K64: Oct
K65: Nov
K66: Dec
K67: Annual | L67: =AVERAGE(L55:L66) ->  | M67: =MAX(M55:M66) -> 0 | N67: =AVERAGE(N55:N66) ->  | O67: =MAX(O55:O66) -> 0
J69: =+A8 -> 2025 | K69: mg/Nm3 | L69: Monthly mean of half-hourly averages | M69: Highest half- hourly average | N69: Monthly mean of daily averages | O69: Highest daily average
J70: A5 | K70: Jan
K71: Feb
K72: Mar
K73: Apr
K74: May
K75: Jun
K76: Jul
K77: Aug
K78: Sep
K79: Oct
K80: Nov
K81: Dec
K82: Annual | L82: =AVERAGE(L70:L81) ->  | M82: =MAX(M70:M81) -> 0 | N82: =AVERAGE(N70:N81) ->  | O82: =MAX(O70:O81) -> 0

Sheet CO 95% 10 min
A1: =+'Cover Page'!$B$29 -> Annual Performance Report 2025 | E1: =+'Cover Page'!$B$33 -> Javelin Park Energy Recovery Facility
A3: Monitoring of Carbon Monoxide (10-minute avg) | E3: Whole Installation | H3: See Notes in Cell S3 | J3: =+A3 -> Monitoring of Carbon Monoxide (10-minute avg) | O3: Per Combustion Line | Q3: Notes: | S3: Notes:
A5: Please complete this tab for your plant if you have 10-minute average CO ELVs; otherwise, leave it blank and complete the CO 0.5 hourly tab
S7: User to add logic to complete Whole installation, Table A5:H18. From the data in Per Combustion Line, Table K6:Q79, subject to No. of lines installed
A8: =+'Cover Page'!C39 -> 2025 | B8: 10-minute Reference Periods | F8: Daily Reference Periods
A9: mg/Nm3 | B9: 95%ile 10-min avg CO ELV | C9: Highest daily 95%ile 10-min average | D9: Monthly mean of 10-min averages | E9: Highest 10-min average | F9: Daily CO ELV | G9: Monthly mean of daily averages | H9: Highest daily average | K9: =+A8 -> 2025 | L9: mg/Nm3 | M9: Highest daily 95%ile 10-min average | N9: Monthly mean of 10-min averages | O9: Highest 10-min average | P9: Monthly mean of daily averages | Q9: Highest daily average
A10: Jan | B10: 150 | C10: 5.23 | D10: 1 | E10: 369 | F10: 50 | G10: 1.455806452 | H10: 5 | K10: A1 | L10: Jan | M10: 5.23 | N10: 1 | O10: 369 | P10: 1.455806452 | Q10: 5
A11: Feb | B11: =+B10 -> 150 | C11: 2.58 | D11: 0 | E11: 319 | F11: =+F10 -> 50 | G11: 0.1425 | H11: 3 | L11: Feb | M11: 2.58 | N11: 0 | O11: 319 | P11: 0.1425 | Q11: 3
A12: Mar | B12: =+B11 -> 150 | C12: 4.47 | D12: 1 | E12: 343 | F12: =+F11 -> 50 | G12: 0.6022580645 | H12: 4 | L12: Mar | M12: 4.47 | N12: 1 | O12: 343 | P12: 0.6022580645 | Q12: 4 | S12: Whole Installation table A5:H18:
A13: Apr | B13: 150 | C13: 3.9 | D13: 1 | E13: 785 | F13: 50 | G13: 0.956 | H13: 8 | L13: Apr | M13: 3.9 | N13: 1 | O13: 785 | P13: 0.956 | Q13: 8 | S13: Mean: for 10-min and daily periods use average of all operational combustion lines.
A14: May | B14: 150 | C14: 2.23 | D14: 0 | E14: 314 | F14: 50 | G14: 0.2373076923 | H14: 2 | L14: May | M14: 2.23 | N14: 0 | O14: 314 | P14: 0.2373076923 | Q14: 2
A15: Jun | B15: 150 | C15: 5.21 | D15: 0 | E15: 360 | F15: 50 | G15: 0.3143333333 | H15: 5 | L15: Jun | M15: 5.21 | N15: 0 | O15: 360 | P15: 0.3143333333 | Q15: 5
A16: Jul | B16: 150 | C16: 5.54 | D16: 1 | E16: 466 | F16: 50 | G16: 0.5203225806 | H16: 6 | L16: Jul | M16: 5.54 | N16: 1 | O16: 466 | P16: 0.5203225806 | Q16: 6 | S16: Maximum: for 10-min and daily periods use the highest of all operational combustion lines in any month.
A17: Aug | B17: 150 | C17: 3.17 | D17: 1 | E17: 419 | F17: 50 | G17: 0.5603571429 | H17: 3 | L17: Aug | M17: 3.17 | N17: 1 | O17: 419 | P17: 0.5603571429 | Q17: 3
A18: Sep | B18: 150 | C18: 2.67 | D18: 1 | E18: 201 | F18: 50 | G18: 0.9736363636 | H18: 3 | L18: Sep | M18: 2.67 | N18: 1 | O18: 201 | P18: 0.9736363636 | Q18: 3
A19: Oct | B19: 150 | C19: 3.56 | D19: 1 | E19: 468 | F19: 50 | G19: 1.352666667 | H19: 4 | L19: Oct | M19: 3.56 | N19: 1 | O19: 468 | P19: 1.352666667 | Q19: 4
A20: Nov | B20: 150 | C20: 4.65 | D20: 2 | E20: 567 | F20: 50 | G20: 1.782 | H20: 5 | L20: Nov | M20: 4.65 | N20: 2 | O20: 567 | P20: 1.782 | Q20: 5
A21: Dec | B21: 150 | C21: 4.14 | D21: 1 | E21: 167 | F21: 50 | G21: 1.446774194 | H21: 4 | L21: Dec | M21: 4.14 | N21: 1 | O21: 167 | P21: 1.446774194 | Q21: 4
L22: Annual | M22: =AVERAGE(M10:M21) -> 3.945833333 | O22: =MAX(O10:O21) -> 785 | P22: =AVERAGE(P10:P21) -> 0.8619968741 | Q22: =MAX(Q10:Q21) -> 8
K24: =+A8 -> 2025 | L24: mg/Nm3 | M24: Highest daily 95%ile 10-min average | N24: Monthly mean of 10-min averages | O24: Highest 10-min average | P24: Monthly mean of daily averages | Q24: Highest daily average
K25: A2 | L25: Jan
L26: Feb
L27: Mar
L28: Apr
L29: May
L30: Jun
L31: Jul
L32: Aug
L33: Sep
L34: Oct
L35: Nov
L36: Dec
L37: Annual | M37: =AVERAGE(M25:M36) ->  | O37: =MAX(O25:O36) -> 0 | P37: =AVERAGE(P25:P36) ->  | Q37: =MAX(Q25:Q36) -> 0
K39: =+A8 -> 2025 | L39: mg/Nm3 | M39: Highest daily 95%ile 10-min average | N39: Monthly mean of 10-min averages | O39: Highest 10-min average | P39: Monthly mean of daily averages | Q39: Highest daily average
K40: A3 | L40: Jan
L41: Feb
L42: Mar
L43: Apr
L44: May
L45: Jun
L46: Jul
L47: Aug
L48: Sep
L49: Oct
L50: Nov
A51: Comments : | L51: Dec
A52: Environment Agency explanatory note: The 10-minute average ELV is based on the “95th percentile”. In this case this means that 95% of the 10 minute averages in the relevant 24-hour period (i.e. 137) must be below 150 mg/Nm3, and 5% (i.e. 7) are allowed to be any value above 150 mg/Nm3. Whilst we expect operators to minimise CO emissions at all times, it is perfectly acceptable for the value of the maximum 10-minute average to be above 150 mg/Nm3, provided the 95th percentile ELV has been met for that period. | L52: Annual | M52: =AVERAGE(M40:M51) ->  | O52: =MAX(O40:O51) -> 0 | P52: =AVERAGE(P40:P51) ->  | Q52: =MAX(Q40:Q51) -> 0
K54: =+A8 -> 2025 | L54: mg/Nm3 | M54: Highest daily 95%ile 10-min average | N54: Monthly mean of 10-min averages | O54: Highest 10-min average | P54: Monthly mean of daily averages | Q54: Highest daily average
K55: A4 | L55: Jan
L56: Feb
L57: Mar
L58: Apr
L59: May
L60: Jun
L61: Jul
L62: Aug
L63: Sep
L64: Oct
L65: Nov
L66: Dec
L67: Annual | M67: =AVERAGE(M55:M66) ->  | O67: =MAX(O55:O66) -> 0 | P67: =AVERAGE(P55:P66) ->  | Q67: =MAX(Q55:Q66) -> 0
K69: =+A8 -> 2025 | L69: mg/Nm3 | M69: 95%ile 10-min avg maximum | N69: Monthly CO 10-min avg mean | O69: 10-min avg maximum | P69: Monthly daily mean | Q69: Monthly daily maximum
K70: A5 | L70: Jan
L71: Feb
L72: Mar
L73: Apr
L74: May
L75: Jun
L76: Jul
L77: Aug
L78: Sep
L79: Oct
L80: Nov
L81: Dec
L82: Annual | M82: =AVERAGE(M70:M81) ->  | O82: =MAX(O70:O81) -> 0 | P82: =AVERAGE(P70:P81) ->  | Q82: =MAX(Q70:Q81) -> 0

Sheet NH3
A1: =+'Cover Page'!$B$29 -> Annual Performance Report 2025 | E1: =+'Cover Page'!$B$33 -> Javelin Park Energy Recovery Facility
A3: Monitoring of Ammnonia emissions | D3: Whole Installation | G3: See Notes in Cell Q3 | J3: =+A3 -> Monitoring of Ammnonia emissions | N3: Per Combustion Line | Q3: Notes:
Q4: User to add logic to complete Whole installation, Table A5:G18. From the data in Per Combustion Line, Table J6:O79, subject to No. of lines installed
A5: =+'Cover Page'!C39 -> 2025 | B5: 1/2 Hourly Reference Periods | E5: Daily Reference Periods
A6: mg/Nm3 | B6: 1/2 hourly NH3 ELV | C6: Monthly mean of half-hourly averages | D6: Highest half- hourly average | E6: Daily NH3 ELV | F6: Monthly mean of daily averages | G6: Highest daily average | J6: =+A5 -> 2025 | K6: mg/Nm3 | L6: Monthly mean of half-hourly averages | M6: Highest half- hourly average | N6: Monthly mean of daily averages | O6: Highest daily average
A7: Jan | B7: None | C7: 0 | D7: 2 | E7: 15 | F7: -0.1009677419 | G7: 0 | J7: A1 | K7: Jan | L7: 0 | M7: 2 | N7: -0.1009677419 | O7: 0
A8: Feb | B8: =+B7 -> None | C8: 0 | D8: 2 | E8: 15 | F8: -0.05214285714 | G8: 0 | K8: Feb | L8: 0 | M8: 2 | N8: -0.05214285714 | O8: 0
A9: Mar | B9: =+B8 -> None | C9: 0 | D9: 1 | E9: 15 | F9: -0.05548387097 | G9: 0 | K9: Mar | L9: 0 | M9: 1 | N9: -0.05548387097 | O9: 0 | Q9: Whole Installation table A5:G18:
A10: Apr | B10: None | C10: 0 | D10: 1 | E10: 15 | F10: 0.1296 | G10: 0 | K10: Apr | L10: 0 | M10: 1 | N10: 0.1296 | O10: 0 | Q10: Mean: for 1/2 hourly and daily periods calculate mean of values across all operational combustion lines for the month
A11: May | B11: None | C11: 0 | D11: 1 | E11: 15 | F11: -0.1080769231 | G11: 0 | K11: May | L11: 0 | M11: 1 | N11: -0.1080769231 | O11: 0
A12: Jun | B12: None | C12: 0 | D12: 1 | E12: 15 | F12: 0.1356666667 | G12: 1 | K12: Jun | L12: 0 | M12: 1 | N12: 0.1356666667 | O12: 1
A13: Jul | B13: None | C13: 0 | D13: 2 | E13: 15 | F13: 0.01096774194 | G13: 0 | K13: Jul | L13: 0 | M13: 2 | N13: 0.01096774194 | O13: 0 | Q13: Maximum: for 1/2 hourly and daily periods use the highest value across all operational combustion lines for the month
A14: Aug | B14: None | C14: 0 | D14: 2 | E14: 15 | F14: 0.1278571429 | G14: 1 | K14: Aug | L14: 0 | M14: 2 | N14: 0.1278571429 | O14: 1
A15: Sep | B15: None | C15: 0 | D15: 2 | E15: 15 | F15: 0.2481818182 | G15: 1 | K15: Sep | L15: 0 | M15: 2 | N15: 0.2481818182 | O15: 1
A16: Oct | B16: None | C16: 0 | D16: 1 | E16: 15 | F16: 0.1393333333 | G16: 0 | K16: Oct | L16: 0 | M16: 1 | N16: 0.1393333333 | O16: 0
A17: Nov | B17: None | C17: 0 | D17: 1 | E17: 15 | F17: 0.197 | G17: 0 | K17: Nov | L17: 0 | M17: 1 | N17: 0.197 | O17: 0
A18: Dec | B18: None | C18: 0 | D18: 1 | E18: 15 | F18: 0.1990322581 | G18: 0 | K18: Dec | L18: 0 | M18: 1 | N18: 0.1990322581 | O18: 0
K19: Annual | L19: =AVERAGE(L7:L18) -> 0 | M19: =MAX(M7:M18) -> 2 | N19: =AVERAGE(N7:N18) -> 0.07258063066 | O19: =MAX(O7:O18) -> 1
J21: =+A5 -> 2025 | K21: mg/Nm3 | L21: Monthly mean of half-hourly averages | M21: Highest half- hourly average | N21: Monthly mean of daily averages | O21: Highest daily average
J22: A2 | K22: Jan
K23: Feb
K24: Mar
K25: Apr
K26: May
K27: Jun
K28: Jul
K29: Aug
K30: Sep
K31: Oct
K32: Nov
K33: Dec
K34: Annual | L34: =AVERAGE(L22:L33) ->  | M34: =MAX(M22:M33) -> 0 | N34: =AVERAGE(N22:N33) ->  | O34: =MAX(O22:O33) -> 0
J36: =+A5 -> 2025 | K36: mg/Nm3 | L36: Monthly mean of half-hourly averages | M36: Highest half- hourly average | N36: Monthly mean of daily averages | O36: Highest daily average
J37: A3 | K37: Jan
K38: Feb
K39: Mar
K40: Apr
K41: May
K42: Jun
K43: Jul
K44: Aug
K45: Sep
K46: Oct
K47: Nov
A48: Comments : | K48: Dec
A49: An indicated ELV value of zero in the table above means that no ammonia limit is/was set in the permit. | K49: Annual | L49: =AVERAGE(L37:L48) ->  | M49: =MAX(M37:M48) -> 0 | N49: =AVERAGE(N37:N48) ->  | O49: =MAX(O37:O48) -> 0
J51: =+A5 -> 2025 | K51: mg/Nm3 | L51: Monthly mean of half-hourly averages | M51: Highest half- hourly average | N51: Monthly mean of daily averages | O51: Highest daily average
J52: A4 | K52: Jan
K53: Feb
K54: Mar
K55: Apr
K56: May
K57: Jun
K58: Jul
K59: Aug
K60: Sep
K61: Oct
K62: Nov
K63: Dec
K64: Annual | L64: =AVERAGE(L52:L63) ->  | M64: =MAX(M52:M63) -> 0 | N64: =AVERAGE(N52:N63) ->  | O64: =MAX(O52:O63) -> 0
J66: =+A5 -> 2025 | K66: mg/Nm3 | L66: Monthly mean of half-hourly averages | M66: Highest half- hourly average | N66: Monthly mean of daily averages | O66: Highest daily average
J67: A5 | K67: Jan
K68: Feb
K69: Mar
K70: Apr
K71: May
K72: Jun
K73: Jul
K74: Aug
K75: Sep
K76: Oct
K77: Nov
K78: Dec
K79: Annual | L79: =AVERAGE(L67:L78) ->  | M79: =MAX(M67:M78) -> 0 | N79: =AVERAGE(N67:N78) ->  | O79: =MAX(O67:O78) -> 0

Sheet Template changes log
A1: Log of changes to template (Environment Agency use only)
A3: Date | B3: Description of change | C3: New version number and date
A4: 2024-01-16 | B4: Air (periodic) tab: corrected default O2 reference from 6 to 11% | C4: Version 23.5a (for incinerators) - 16/01/2024
A5: 2024-09-23 | B5: Air (periodic) tab: corrected symbol for Thallium to Tl
A6: 2024-09-23 | B6: Air (periodic) tab: removed last year's references to different emission limit values applying from 03/12/23 and updated all relevant ELVs
A7: 2024-09-23 | B7: Tabs for continuously monitored pollutants (HCl, SO2 etc.): changed terminology in table headings to improve clarity
A8: 2024-09-23 | B8: Tabs for continuously monitored pollutants (HCl, SO2 etc.): removed last year's references to different emission limit values applying from 03/12/23 and updated all relevant ELVs
A9: 2024-09-23 | B9: Perf 1 tab: updated formula for water usage to report m3 rather than litres and corrected error with formula copying operator name
A10: 2024-09-23 | B10: Operational Summary tab: table added on start-ups and shut-downs
A11: 2024-09-23 | B11: Operational Summary tab: table added on dioxins and mercury protocols
A12: 2024-09-23 | B12: Operational Summary tab: table added on AST, QAL 2 and calibration functions
A13: 2024-09-23 | B13: CO2 N2O tab: various changes made to notes to reflect the fact that most plants should now have calibrated CEMS and flow meters + some have C14 samplers and more up to date industry data | C13: Version 24a (for incinerators) - 23/09/24
A14: 2024-11-08 | B14: CO2 N2O tab: Changed the N2O CO2 equivalence factor from 298 to 265 in line with recently updated government greenhouse gas figures: https://www.gov.uk/government/publications/greenhouse-gas-reporting-conversion-factors-2024
A15: 2024-11-08 | B15: CO2 N2O tab: Added an additional requirement for municipal EfW plants to state the yearly average biogenic percentage of the waste by mass, and reference to a document which sets out a methodology for calculating NCV of waste from the results of C14 sampling.
A16: 2024-11-08 | B16: Permit Compliance tab: Two additional columns added + explanatory notes to the table entitled "Summary of non-compliances under the permit" to allow CCS scores to be stated where relevant.
A17: 2024-11-08 | B17: Residue Quality tab: Note added explaining application of TOC and LOI limits and asking operators to report both metrics where measured. | C17: Version 24.1a (for incinerators) - 08/11/24
A18: 2024-11-27 | B18: Operational Summary tab: table added on start-ups and shut-downs | C18: Version 24.2a (for incinerators) - 27/11/24
A19: 2025-11-27 | B19: Cover Page: Print as PDF and Print Report and pdf buttons deleted and blank columns removed; contents page deleted | C19: Version 25.1a (for incinerators) - 27/11/25
A20: 2025-11-27 | B20: Residue Quality tab renamed to "Residues", and Summary of residue handling table moved from Operational Summary tab to Residues tab.
A21: 2025-11-27 | B21: Various changes made to the Operational Data tab including • Reformatting of the rows under the Operational data heading (Rows 3-8) to make it clearer what information is required. • Amendment of the rows under the Energy Usage / Export heading (Rows 26-32) to calculate an “indicative parasitic load” (now excluding energy imported) • Amendment of the unit for gas usage from cubic feet to cubic metres (Row 50) • Some amendments to the first 2 notes and other minor edits • Deleted "Overall Availability, mean avg. of all lines, hrs" row
A22: 2025-11-27 | B22: Operational Summary tab: Note added requiring all emergency shut-downs be listed, irrespective of whether or not they were reportable.
A23: 2025-11-27 | B23: CO2 N2O tab: Note added to ask operators to ensure that relevant data reported here matches that which will be submitted under the Pollution Inventory
